lending/lending_fUSD_20251124
["ID","MTS","AMOUNT","RATE_DAILY","PERIOD"]
[394812222,1763975442110,-500.0,0.00038495,8]
[394812223,1763975442119,-500.0,0.00038495,8]
[394812224,1763975442128,-500.0,0.00038495,8]
[394812225,1763975442138,-500.0,0.00038495,8]
[394812226,1763975442148,-500.0,0.00038495,8]
[394812227,1763975442158,-500.0,0.00038495,8]
[394812228,1763975442167,-1000.0,0.00038495,8]
[394812229,1763975442177,-292.71939342,0.00038495,8]
[394812230,1763975442186,-504.83547106,0.00038495,8]
[394812231,1763975442195,-500.0,0.00038495,8]
[394812232,1763975442205,-392.06,0.00038495,8]
[394812233,1763975442214,-495.36013743,0.00038495,8]
[394812234,1763975442223,-500.0,0.00038495,8]
[394812235,1763975442232,-500.0,0.00038495,8]
[394812236,1763975442243,-5522.0,0.00038496,5]
[394812237,1763975442253,-600.01,0.00038496,30]
[394812238,1763975442263,-760000.0,0.00038496,2]
[394812239,1763975442272,-168.04371873,0.00038496,12]
[394812240,1763975442281,-150.0,0.00038533,2]
[394812241,1763975442291,-503.76538744,0.00038533,2]
[394812242,1763975442300,-648.05767948,0.00038533,2]
[394812243,1763975442310,-150.0,0.00038533,2]
[394812244,1763975442319,-150.0,0.00038533,2]
[394812245,1763975442328,-150.0,0.00038538,7]
[394812246,1763975442337,-316.90797564,0.00038586,2]
[394812247,1763975442348,-150.62,0.00038586,2]
[394812248,1763975442357,-152.06180931,0.00038594,15]
[394812249,1763975442366,-150.0,0.00038594,15]
[394812250,1763975442375,-150.0,0.00038594,15]
[394812251,1763975442383,-150.0,0.00038594,15]
[394812252,1763975442392,-150.0,0.00038594,15]
[394812253,1763975442401,-150.67648058,0.00038594,15]
[394812254,1763975442410,-150.0,0.00038594,15]
[394812255,1763975442419,-620.0,0.00038594,15]
[394812256,1763975442428,-500.0,0.00038594,15]
[394812257,1763975442437,-620.0,0.00038594,15]
[394812258,1763975442445,-500.0,0.00038594,15]
[394812259,1763975442454,-500.0,0.00038594,15]
[394812260,1763975442463,-597.09424157,0.00038594,15]
[394812261,1763975442472,-578.20924308,0.00038594,15]
[394812262,1763975442481,-500.0,0.00038594,15]
[394812263,1763975442491,-199.07364582,0.00038594,15]
[394812264,1763975442500,-500.0,0.00038594,15]
[394812265,1763975442508,-500.0,0.00038594,15]
[394812266,1763975442517,-500.0,0.00038594,15]
[394812267,1763975442526,-500.0,0.00038594,15]
[394812268,1763975442535,-500.0,0.00038594,15]
[394812269,1763975442543,-500.0,0.00038594,15]
[394812270,1763975442552,-500.0,0.00038594,15]
[394812271,1763975442561,-500.0,0.00038594,15]
[394812272,1763975442570,-500.0,0.00038594,15]
[394812273,1763975442580,-500.0,0.00038594,15]
[394812274,1763975442590,-500.0,0.00038594,15]
[394812275,1763975442598,-500.0,0.00038594,15]
[394812276,1763975442608,-500.0,0.00038594,15]
[394812277,1763975442622,-500.0,0.00038594,15]
[394812278,1763975442632,-500.0,0.00038594,15]
[394812279,1763975442641,-500.0,0.00038594,15]
[394812280,1763975442651,-500.0,0.00038594,15]
[394812281,1763975442660,-500.0,0.00038594,15]
[394812282,1763975442670,-500.0,0.00038594,15]
[394812283,1763975442680,-500.0,0.00038594,15]
[394812284,1763975442690,-500.0,0.00038594,15]
[394812285,1763975442700,-500.0,0.00038594,15]
[394812286,1763975442709,-500.0,0.00038594,15]
[394812287,1763975442718,-500.0,0.00038594,15]
[394812288,1763975442727,-500.0,0.00038594,15]
[394812289,1763975442738,-500.0,0.00038594,15]
[394812290,1763975442747,-500.0,0.00038594,15]
[394812291,1763975442757,-500.0,0.00038594,15]
[394812292,1763975442767,-500.0,0.00038594,15]
[394812293,1763975442776,-500.0,0.00038594,15]
[394812294,1763975442785,-500.0,0.00038594,15]
[394812295,1763975442794,-500.0,0.00038594,15]
[394812296,1763975442802,-500.0,0.00038594,15]
[394812297,1763975442811,-500.0,0.00038594,15]
[394812298,1763975442820,-475.70981304,0.00038594,15]
[394812299,1763975442829,-500.0,0.00038594,15]
[394812300,1763975442838,-500.0,0.00038594,15]
[394812301,1763975442847,-500.0,0.00038594,15]
[394812302,1763975442856,-247.89835245,0.00038594,15]
[394812303,1763975442865,-1000.0,0.00038594,3]
[394812304,1763975442874,-1000.0,0.00038594,3]
[394812305,1763975442883,-505.3962654,0.00038595,8]
[394812306,1763975442894,-501.53724511,0.00038595,8]
[394812307,1763975442903,-500.0,0.00038595,8]
[394812308,1763975442912,-500.0,0.00038595,8]
[394812309,1763975442921,-500.0,0.00038595,8]
[394812310,1763975442930,-500.0,0.00038595,8]
[394812311,1763975442939,-500.0,0.00038595,8]
[394812312,1763975442949,-500.0,0.00038595,8]
[394812313,1763975442961,-500.0,0.00038595,8]
[394812314,1763975442970,-509.99937631,0.00038595,8]
[394812315,1763975442979,-500.0,0.00038595,8]
[394812316,1763975442989,-500.0,0.00038595,8]
[394812317,1763975442998,-504.08916528,0.00038595,8]
[394812318,1763975443008,-524.97400001,0.00038595,8]
[394812319,1763975443017,-500.0,0.00038595,7]
[394812320,1763975443027,-500.0,0.00038595,8]
[394812321,1763975443037,-500.0,0.00038595,8]
[394812322,1763975443045,-500.0,0.00038595,8]
[394812323,1763975443055,-500.0,0.00038595,8]
[394812324,1763975443064,-500.0,0.00038595,8]
[394812325,1763975443073,-500.0,0.00038595,8]
[394812326,1763975443083,-500.0,0.00038595,8]
[394812327,1763975443092,-532.18599475,0.00038595,8]
[394812328,1763975443101,-262.95840098,0.00038595,8]
[394812329,1763975443111,-500.0,0.00038595,8]
[394812330,1763975443121,-500.0,0.00038595,8]
[394812331,1763975443131,-500.0,0.00038595,8]
[394812332,1763975443140,-500.0,0.00038595,8]
[394812333,1763975443149,-500.0,0.00038595,8]
[394812334,1763975443160,-609.87085177,0.00038595,8]
[394812335,1763975443170,-747.48878,0.00038595,2]
[394812336,1763975443180,-500.0,0.00038595,2]
[394812337,1763975443189,-1000.0,0.00038595,2]
[394812338,1763975443199,-156.67488001,0.00038595,8]
[394812339,1763975443208,-7501.69176739,0.00038595,2]
[394812340,1763975443219,-216708.38051411,0.00038596,2]
[394812341,1763975443244,-756.76,0.00038596,2]
[394812344,1763975443270,-1557.38467929,0.00038596,2]
[394812345,1763975443438,-500.0,0.00038495,8]
[394812346,1763975443448,-890.81753339,0.00038596,2]
[394812347,1763975443461,-1262.17621679,0.00038596,2]
[394812348,1763975443472,-1543.09853918,0.00038596,2]
[394812349,1763975443483,-1630.68797686,0.00038596,2]
[394812350,1763975443495,-896.70793999,0.00038596,2]
[394812351,1763975443507,-846.95628169,0.00038596,2]
[394812352,1763975443519,-636.87301503,0.00038596,2]
[394812353,1763975443530,-429.98918981,0.00038596,2]
[394812354,1763975443542,-3499.85741186,0.00038596,2]
[394812355,1763975443551,-151.0,0.00038596,120]
[394812356,1763975443562,-151.0,0.00038596,120]
[394812357,1763975443571,-151.0,0.00038596,120]
[394812358,1763975443583,-153.98619,0.00038596,120]
[394812359,1763975443593,-232.995886,0.00038596,30]
[394812360,1763975443602,-151.0,0.00038596,120]
[394812361,1763975443615,-151.0,0.00038596,2]
[394812362,1763975443625,-151.0,0.00038596,120]
[394812363,1763975443634,-167.400431,0.00038596,120]
[394812364,1763975443643,-151.0,0.00038596,120]
[394812365,1763975443654,-168.574834,0.00038596,120]
[394812366,1763975443663,-168.574834,0.00038596,120]
[394812367,1763975443673,-168.574834,0.00038596,120]
[394812368,1763975443684,-168.574834,0.00038596,120]
[394812369,1763975443694,-151.0,0.00038596,120]
[394812370,1763975443703,-327.307542,0.00038596,120]
[394812371,1763975443712,-327.307542,0.00038596,120]
[394812372,1763975443722,-327.307542,0.00038596,120]
[394812373,1763975443731,-151.0,0.00038596,120]
[394812374,1763975443742,-327.307542,0.00038596,120]
[394812375,1763975443751,-151.0,0.00038596,120]
[394812376,1763975443760,-151.0,0.00038596,120]
[394812377,1763975443770,-151.0,0.00038596,120]
[394812378,1763975443779,-155.601761,0.00038596,120]
[394812379,1763975443788,-151.0,0.00038596,120]
[394812380,1763975443797,-151.0,0.00038596,120]
[394812381,1763975443806,-151.0,0.00038596,120]
[394812382,1763975443815,-151.0,0.00038596,120]
[394812383,1763975443824,-300.088969,0.00038596,120]
[394812384,1763975443833,-172.188611,0.00038596,120]
[394812385,1763975443842,-172.188611,0.00038596,120]
[394812386,1763975443851,-172.188611,0.00038596,120]
[394812387,1763975443860,-151.0,0.00038596,120]
[394812388,1763975443870,-172.188611,0.00038596,120]
[394812389,1763975443879,-151.0,0.00038596,120]
[394812390,1763975443888,-227.591741,0.00038596,120]
[394812391,1763975443896,-227.591741,0.00038596,120]
[394812392,1763975443906,-227.591741,0.00038596,120]
[394812393,1763975443915,-227.591741,0.00038596,120]
[394812394,1763975443924,-151.0,0.00038596,120]
[394812395,1763975443934,-151.0,0.00038596,120]
[394812396,1763975443944,-151.0,0.00038596,120]
[394812397,1763975443954,-151.0,0.00038596,120]
[394812398,1763975443964,-151.0,0.00038596,120]
[394812399,1763975443974,-151.0,0.00038596,120]
[394812400,1763975443984,-151.0,0.00038596,120]
[394812401,1763975443994,-298.244619,0.00038596,120]
[394812402,1763975444003,-151.0,0.00038596,120]
[394812403,1763975444012,-151.0,0.00038596,120]
[394812404,1763975444021,-151.0,0.00038596,120]
[394812405,1763975444030,-151.0,0.00038596,120]
[394812406,1763975444039,-151.0,0.00038596,120]
[394812407,1763975444049,-178.005344,0.00038596,120]
[394812408,1763975444058,-151.0,0.00038596,120]
[394812409,1763975444066,-151.0,0.00038596,120]
[394812410,1763975444078,-151.0,0.00038596,120]
[394812411,1763975444088,-184.823844,0.00038596,120]
[394812412,1763975444097,-184.823844,0.00038596,120]
[394812413,1763975444106,-184.823844,0.00038596,120]
[394812414,1763975444116,-184.823844,0.00038596,120]
[394812415,1763975444125,-151.0,0.00038596,120]
[394812416,1763975444135,-151.0,0.00038596,120]
[394812417,1763975444144,-151.0,0.00038596,120]
[394812418,1763975444154,-160.12009,0.00038596,120]
[394812419,1763975444164,-151.0,0.00038596,120]
[394812420,1763975444174,-151.0,0.00038596,120]
[394812421,1763975444184,-151.0,0.00038596,120]
[394812422,1763975444193,-151.0,0.00038596,120]
[394812423,1763975444203,-151.0,0.00038596,120]
[394812424,1763975444213,-207.026969,0.00038596,120]
[394812425,1763975444223,-151.0,0.00038596,120]
[394812426,1763975444233,-207.026969,0.00038596,120]
[394812427,1763975444244,-151.0,0.00038596,120]
[394812428,1763975444255,-151.0,0.00038596,120]
[394812429,1763975444265,-207.026969,0.00038596,120]
[394812430,1763975444275,-151.0,0.00038596,120]
[394812431,1763975444285,-207.026969,0.00038596,120]
[394812432,1763975444295,-151.0,0.00038596,120]
[394812433,1763975444305,-151.0,0.00038596,30]
[394812434,1763975444314,-151.0,0.00038596,120]
[394812435,1763975444324,-151.0,0.00038596,120]
[394812436,1763975444333,-151.0,0.00038596,30]
[394812437,1763975444343,-151.0,0.00038596,120]
[394812438,1763975444352,-151.0,0.00038596,30]
[394812439,1763975444363,-500.0,0.00038599,7]
[394812440,1763975444372,-500.0,0.00038599,2]
[394812441,1763975444382,-1830.0,0.000386,2]
[394812442,1763975444391,-1829.0,0.000386,2]
[394812443,1763975444401,-1430.99,0.0003861,120]
[394812444,1763975444411,-150.0,0.00038615,7]
[394812445,1763975444420,-150.0,0.00038615,7]
[394812446,1763975444430,-150.0,0.00038615,7]
[394812447,1763975444439,-300.0,0.00038618,2]
[394812448,1763975444449,-500.0,0.0003863,120]
[394812449,1763975444459,-150.0,0.00038632,15]
[394812450,1763975444468,-9135.1263766,0.00038642,2]
[394812451,1763975444478,-168.0,0.00038659,7]
[394812452,1763975444488,-150.0,0.0003867,2]
[394812453,1763975444500,-150.0,0.0003867,2]
[394812454,1763975444510,-271.16934993,0.0003867,2]
[394812455,1763975444519,-150.0,0.00038675,7]
[394812456,1763975444530,-290.97756647,0.00038731,15]
[394812457,1763975444540,-150.0,0.00038731,15]
[394812458,1763975444550,-150.0,0.00038731,15]
[394812459,1763975444560,-150.0,0.00038731,15]
[394812460,1763975444570,-150.0,0.00038731,15]
[394812461,1763975444579,-150.62,0.00038734,2]
[394812462,1763975444589,-5366.76184114,0.00038744,2]
[394812463,1763975444749,-4693.57473981,0.00038744,2]
[394812468,1763975445751,-500.0,0.00038495,8]
[394812469,1763975445761,-476.51,0.00038744,2]
[394812470,1763975446012,-3041.21728559,0.00038744,2]
[394812495,1763975548917,167.6463855,0.00016,2]
[394812496,1763975624381,155.75,0.00013699,2]
[394812521,1763976413149,19.9234346,0.000162,5]
[394812522,1763976413173,1918.70342541,0.000162,5]
[394812540,1763976631887,-155.75,0.00022505,2]
[394812541,1763976631897,-385.47177,0.00025,2]
[394812542,1763976631906,-400.0,0.0003,2]
[394812543,1763976631915,-155.75,0.00031311,2]
[394812544,1763976631924,-406.39826131,0.00037006,2]
[394812545,1763976631933,-300.0,0.00037118,3]
[394812546,1763976631945,-300.0,0.00037118,3]
[394812547,1763976631957,-1200.0,0.00037118,3]
[394812548,1763976631966,-301.0,0.00037118,3]
[394812549,1763976631975,-28339.24,0.00037119,2]
[394812550,1763976631985,-5000.0,0.00037422,2]
[394812551,1763976631994,-1500.0,0.00037442,120]
[394812552,1763976632004,-166.57029206,0.00037546,2]
[394812553,1763976632013,-275.3,0.00037601,2]
[394812554,1763976632023,-166.63662054,0.00037629,2]
[394812555,1763976632034,-33.36337946,0.00037629,2]
[394812556,1763976632044,-1072.64,0.00037649,2]
[394812557,1763976632053,-1200.0,0.00037673,3]
[394812558,1763976632062,-2087.29,0.00037674,2]
[394812559,1763976632071,-2751.0,0.00037685,120]
[394812560,1763976632080,-150.0,0.00037775,7]
[394812561,1763976632090,-150.0,0.00037775,7]
[394812562,1763976632099,-150.0,0.00037775,7]
[394812564,1763976632109,-150.0,0.00037775,7]
[394812566,1763976632118,-150.0,0.00037775,7]
[394812568,1763976632127,-153.23992756,0.00037775,7]
[394812570,1763976632136,-150.0,0.00037775,7]
[394812572,1763976632145,-151.72687124,0.00037775,7]
[394812573,1763976632154,-150.0,0.00037775,7]
[394812574,1763976632163,-150.50740983,0.00037775,7]
[394812575,1763976632173,-150.0,0.00037775,7]
[394812576,1763976632182,-150.0,0.00037775,7]
[394812577,1763976632202,-150.0,0.00037775,7]
[394812578,1763976632211,-271.81,0.00037807,2]
[394812580,1763976632220,-492.38,0.00038,15]
[394812581,1763976632231,-150.0,0.00038075,7]
[394812582,1763976632240,-150.0,0.00038098,7]
[394812585,1763976632250,-200.0,0.00038138,2]
[394812588,1763976632259,-150.0,0.00038157,7]
[394812590,1763976632268,-622.90732,0.0003821,2]
[394812592,1763976632277,-150.0,0.00038242,7]
[394812594,1763976632287,-200.0,0.00038247,4]
[394812596,1763976632296,-150.0,0.000383,7]
[394812598,1763976632305,-225.6864786,0.0003831,15]
[394812600,1763976632314,-364.18485091,0.0003831,2]
[394812602,1763976632324,-500.0,0.00038356,120]
[394812604,1763976632333,-150.0,0.00038375,7]
[394812606,1763976632342,-78311.32713025,0.00038394,2]
[394812609,1763976632354,-4041.16407892,0.00038394,2]
[394812612,1763976632374,-8711.80136423,0.00038394,2]
[394812614,1763976632385,-3363.53492015,0.00038394,2]
[394812617,1763976632403,-500.0,0.00038393,8]
[394812619,1763976632413,-609.653476,0.00038394,2]
[394812626,1763976632464,-507.90960096,0.00038394,2]
[394812628,1763976632475,-293.2552488,0.00038394,2]
[394812707,1763976637863,-86500.0,0.00038394,2]
[394812708,1763976637919,-4689.48712081,0.00038394,2]
[394812709,1763976637931,-552.69037831,0.00038394,2]
[394812710,1763976637945,-498.75304199,0.00038394,2]
[394812711,1763976637957,-8460.0,0.00038394,2]
[394812712,1763976637968,-126818.06779307,0.00038394,2]
[394812715,1763976639979,-500.0,0.00038393,8]
[394812716,1763976639989,-436642.35584651,0.00038394,2]
[394812717,1763976639998,-150.0,0.0003841,2]
[394812718,1763976640008,-150.0,0.00038421,7]
[394812719,1763976640019,-1031.277,0.00038492,51]
[394812720,1763976640029,-500.0,0.00038494,8]
[394812721,1763976640038,-500.0,0.00038494,8]
[394812722,1763976640047,-500.0,0.00038494,8]
[394812723,1763976640056,-500.0,0.00038494,8]
[394812724,1763976640066,-500.0,0.00038494,8]
[394812725,1763976640075,-500.0,0.00038494,2]
[394812726,1763976640085,-500.0,0.00038494,8]
[394812727,1763976640094,-501.82911863,0.00038494,2]
[394812728,1763976640103,-501.12655664,0.00038494,8]
[394812729,1763976640113,-511.53338736,0.00038494,8]
[394812730,1763976640122,-508.8176842,0.00038494,8]
[394812731,1763976640132,-617.68090369,0.00038494,8]
[394812732,1763976640141,-502.73448477,0.00038494,8]
[394812733,1763976640151,-500.0,0.00038494,8]
[394812734,1763976640160,-500.0,0.00038494,8]
[394812735,1763976640170,-822.85,0.00038494,30]
[394812736,1763976640179,-500.0,0.00038494,8]
[394812737,1763976640188,-500.0,0.00038494,8]
[394812738,1763976640197,-500.0,0.00038494,8]
[394812739,1763976640208,-500.0,0.00038494,8]
[394812740,1763976640218,-500.0,0.00038494,8]
[394812741,1763976640228,-500.0,0.00038494,8]
[394812742,1763976640237,-500.0,0.00038494,8]
[394812743,1763976640247,-500.0,0.00038494,8]
[394812744,1763976640256,-582.78,0.00038494,8]
[394812745,1763976640266,-500.0,0.00038494,8]
[394812746,1763976640275,-500.0,0.00038494,8]
[394812747,1763976640285,-500.0,0.00038494,8]
[394812748,1763976640295,-500.0,0.00038494,8]
[394812749,1763976640305,-500.0,0.00038494,8]
[394812750,1763976640314,-500.0,0.00038494,8]
[394812751,1763976640324,-500.0,0.00038494,8]
[394812752,1763976640333,-641.7495824,0.00038494,8]
[394812753,1763976640342,-500.0,0.00038494,8]
[394812754,1763976640351,-649.13572805,0.00038494,8]
[394812755,1763976640361,-500.0,0.00038494,8]
[394812756,1763976640371,-500.0,0.00038494,8]
[394812757,1763976640380,-500.0,0.00038494,8]
[394812758,1763976640389,-500.0,0.00038494,8]
[394812759,1763976640398,-500.0,0.00038494,8]
[394812760,1763976640408,-568.01517694,0.00038494,8]
[394812761,1763976640417,-500.0,0.00038495,8]
[394812762,1763976640427,-500.87241894,0.00038495,8]
[394812763,1763976640436,-500.0,0.00038495,8]
[394812764,1763976640446,-500.0,0.00038495,8]
[394812765,1763976640455,-500.0,0.00038495,2]
[394812766,1763976640466,-500.0,0.00038495,8]
[394812767,1763976640476,-500.0,0.00038495,8]
[394812768,1763976640485,-500.0,0.00038495,8]
[394812769,1763976640494,-501.96443462,0.00038495,8]
[394812771,1763976640504,-502.37612917,0.00038495,8]
[394812772,1763976640513,-500.0,0.00038495,8]
[394812774,1763976640523,-500.0,0.00038495,8]
[394812775,1763976640532,-500.0,0.00038495,8]
[394812776,1763976640541,-500.0,0.00038495,8]
[394812777,1763976640550,-500.0,0.00038495,8]
[394812778,1763976640560,-500.0,0.00038495,8]
[394812779,1763976640569,-150.0,0.00038538,7]
[394812780,1763976640579,-8178.56318843,0.00038568,2]
[394812781,1763976640588,-2500.0,0.00038569,2]
[394812782,1763976640597,-150.0,0.00038615,7]
[394812783,1763976640606,-511.12963602,0.0003863,120]
[394812784,1763976640616,-934.04,0.0003863,120]
[394812785,1763976640625,-934.04,0.00038658,120]
[394812786,1763976640634,-500.0,0.00038667,8]
[394812787,1763976640643,-500.0,0.00038668,8]
[394812788,1763976640652,-534.53365086,0.00038668,8]
[394812789,1763976640662,-322.63,0.00038668,8]
[394812790,1763976640671,-500.0,0.00038668,8]
[394812791,1763976640681,-560.3,0.00038668,8]
[394812792,1763976640690,-500.0,0.00038668,8]
[394812793,1763976640699,-500.0,0.00038668,8]
[394812794,1763976640710,-525.24805685,0.00038668,8]
[394812795,1763976640719,-505.52,0.00038668,8]
[394812796,1763976640728,-587.49,0.00038668,8]
[394812797,1763976640737,-501.23,0.00038668,8]
[394812798,1763976640747,-640.61772075,0.00038668,8]
[394812799,1763976640756,-500.0,0.00038668,8]
[394812800,1763976640765,-515.6186856,0.00038668,8]
[394812801,1763976640775,-500.0,0.00038668,7]
[394812802,1763976640785,-500.0,0.00038668,7]
[394812803,1763976640794,-500.0,0.00038668,7]
[394812804,1763976640804,-500.0,0.00038668,8]
[394812805,1763976640813,-500.0,0.00038668,8]
[394812806,1763976640822,-506.82874019,0.00038668,8]
[394812807,1763976640831,-500.0,0.00038668,8]
[394812808,1763976640840,-500.0,0.00038668,8]
[394812809,1763976640849,-410.0421742,0.00038668,8]
[394812810,1763976640859,-528.93739904,0.00038668,8]
[394812811,1763976640868,-618.05,0.00038668,8]
[394812812,1763976640877,-500.0,0.00038668,8]
[394812813,1763976640887,-514.38,0.00038668,8]
[394812814,1763976640896,-500.0,0.00038668,8]
[394812815,1763976640905,-538.09468135,0.00038668,8]
[394812816,1763976640916,-500.0,0.00038668,8]
[394812817,1763976640925,-500.0,0.00038668,8]
[394812818,1763976640934,-506.18018025,0.00038668,8]
[394812819,1763976640943,-500.0,0.00038668,8]
[394812820,1763976640959,-500.0,0.00038668,8]
[394812821,1763976640969,-500.0,0.00038668,8]
[394812822,1763976640978,-500.0,0.00038668,8]
[394812823,1763976640989,-500.0,0.00038668,8]
[394812824,1763976640999,-473.52082298,0.00038668,8]
[394812825,1763976641008,-503.81608029,0.00038668,8]
[394812826,1763976641018,-550.37,0.00038668,8]
[394812827,1763976641028,-500.0,0.00038668,8]
[394812828,1763976641037,-500.0,0.00038668,8]
[394812829,1763976641046,-500.0,0.00038668,8]
[394812830,1763976641056,-411.3634465,0.00038668,8]
[394812831,1763976641064,-424.95500875,0.00038668,8]
[394812832,1763976641073,-500.0,0.00038668,8]
[394812833,1763976641082,-500.0,0.00038668,8]
[394812834,1763976641091,-500.0,0.00038668,8]
[394812835,1763976641101,-1000.0,0.00038668,8]
[394812836,1763976641110,-500.0,0.00038668,8]
[394812837,1763976641119,-500.0,0.00038668,8]
[394812838,1763976641129,-500.0,0.00038668,8]
[394812839,1763976641139,-605.32,0.00038668,8]
[394812840,1763976641149,-500.0,0.00038668,8]
[394812841,1763976641158,-551.73,0.00038668,8]
[394812842,1763976641167,-500.0,0.00038668,8]
[394812843,1763976641177,-500.0,0.00038668,8]
[394812844,1763976641187,-500.0,0.00038668,8]
[394812845,1763976641196,-500.0,0.00038668,8]
[394812846,1763976641206,-500.0,0.00038668,8]
[394812847,1763976641216,-500.0,0.00038668,8]
[394812848,1763976641225,-500.0,0.00038668,8]
[394812849,1763976641235,-500.0,0.00038668,8]
[394812850,1763976641245,-640.31,0.00038668,8]
[394812851,1763976641255,-500.0,0.00038668,8]
[394812852,1763976641264,-500.0,0.00038668,8]
[394812853,1763976641274,-500.0,0.00038668,8]
[394812854,1763976641283,-500.0,0.00038668,8]
[394812855,1763976641293,-500.0,0.00038668,8]
[394812856,1763976641302,-530.01,0.00038668,8]
[394812857,1763976641311,-500.0,0.00038668,8]
[394812858,1763976641321,-500.0,0.00038668,8]
[394812859,1763976641330,-528.63,0.00038668,8]
[394812860,1763976641339,-426.62279448,0.00038668,8]
[394812861,1763976641348,-531.97,0.00038668,8]
[394812862,1763976641357,-500.0,0.00038668,8]
[394812863,1763976641367,-496.81071461,0.00038668,8]
[394812864,1763976641376,-500.0,0.00038668,8]
[394812865,1763976641385,-500.0,0.00038668,8]
[394812866,1763976641394,-500.0,0.00038668,8]
[394812867,1763976641403,-500.0,0.00038668,8]
[394812868,1763976641412,-500.0,0.00038668,8]
[394812869,1763976641422,-500.0,0.00038668,8]
[394812870,1763976641431,-175.8207412,0.00038668,8]
[394812871,1763976641441,-500.0,0.00038668,8]
[394812872,1763976641450,-500.0,0.00038668,8]
[394812873,1763976641461,-500.0,0.00038668,8]
[394812874,1763976641471,-500.0,0.00038668,8]
[394812875,1763976641480,-500.0,0.00038668,8]
[394812876,1763976641490,-503.64500947,0.00038668,8]
[394812877,1763976641499,-500.0,0.00038668,8]
[394812878,1763976641508,-500.0,0.00038668,8]
[394812879,1763976641518,-500.0,0.00038668,8]
[394812880,1763976641528,-500.0,0.00038668,8]
[394812881,1763976641539,-500.0,0.00038668,8]
[394812882,1763976641548,-500.0,0.00038668,8]
[394812883,1763976641558,-507.75449759,0.00038668,8]
[394812884,1763976641569,-500.0,0.00038668,8]
[394812885,1763976641579,-352.73598118,0.00038668,8]
[394812886,1763976641589,-500.0,0.00038668,8]
[394812887,1763976641599,-346.83198275,0.00038668,8]
[394812888,1763976641608,-500.0,0.00038668,8]
[394812889,1763976641619,-500.0,0.00038668,8]
[394812890,1763976641628,-500.0,0.00038668,8]
[394812891,1763976641638,-500.0,0.00038668,8]
[394812892,1763976641647,-500.0,0.00038668,8]
[394812893,1763976641657,-158.94641058,0.00038668,8]
[394812894,1763976641666,-500.0,0.00038668,8]
[394812895,1763976641676,-500.0,0.00038668,8]
[394812896,1763976641686,-500.0,0.00038668,8]
[394812897,1763976641695,-500.0,0.00038668,8]
[394812898,1763976641704,-589.81712656,0.00038668,8]
[394812899,1763976641716,-500.0,0.00038668,8]
[394812900,1763976641726,-500.0,0.00038668,8]
[394812901,1763976641735,-500.0,0.00038668,8]
[394812902,1763976641745,-528.02882845,0.00038668,8]
[394812903,1763976641755,-509.59056218,0.00038668,8]
[394812904,1763976641764,-500.0,0.00038668,8]
[394812905,1763976641774,-500.0,0.00038668,8]
[394812906,1763976641785,-500.0,0.00038668,8]
[394812907,1763976641795,-500.0,0.00038668,8]
[394812908,1763976641805,-500.0,0.00038668,8]